bitfinex-derivatives/quotes_ETHF0:USTF0_20260223
["timestamp","ask_amount","ask_price","bid_price","bid_amount"]
[1771889992107,0.00453657,1856.9,1856.4,0.59330289]
[1771889992307,0.48678654,1856.8,1856.4,0.59330289]
[1771889992510,0.00453657,1856.9,1856.4,0.59330289]
[1771889996814,1.09654315,1856.8,1856.4,0.59330289]
[1771889997117,0.61403222,1856.9,1856.4,0.59330289]
[1771889997317,0.48715255,1856.8,1856.4,0.59330289]
[1771889997518,0.61403222,1856.9,1856.4,0.59330289]
[1771889997713,0.48717956,1856.8,1856.4,0.59330289]
[1771889997913,0.00453657,1856.9,1856.4,0.59330289]
[1771889998213,0.48718475,1856.8,1856.4,0.59330289]
[1771889998413,0.00453657,1856.9,1856.4,0.59330289]
[1771889998614,0.48718745,1856.8,1856.4,0.59330289]
[1771889998814,0.00453657,1856.9,1856.4,0.59330289]
[1771889999118,0.48724923,1856.8,1856.4,0.59330289]
[1771889999317,0.00453657,1856.9,1856.4,0.59330289]
[1771889999618,0.48734036,1856.8,1856.5,0.56456108]
[1771889999918,0.00453657,1856.9,1856.5,0.56456108]
[1771890000120,0.48741063,1856.8,1856.5,0.56456108]
[1771890000317,0.468,1857.2,1856.7,0.56456108]
[1771890000518,6.6785628,1857.1,1856.7,0.56456108]
[1771890000819,0.48740873,1857.0,1856.7,0.56456108]
[1771890001019,0.60949565,1857.2,1856.7,0.56456108]
[1771890001319,6.67983757,1857.1,1856.7,0.56456108]
[1771890001520,0.48749391,1857.0,1856.7,0.56456108]
[1771890001718,0.61469198,1857.2,1856.7,0.56456108]
[1771890001924,6.67962361,1857.1,1856.7,0.56456108]
[1771890002218,0.48750681,1857.0,1856.7,0.56456108]
[1771890002420,0.61469198,1857.2,1856.7,0.56456108]
[1771890002621,7.28867031,1857.1,1856.7,0.56456108]
[1771890002821,1.09696761,1857.0,1856.7,0.56456108]
[1771890003020,0.60949565,1857.0,1856.5,0.56456108]
[1771890004321,0.60949565,1856.9,1856.5,0.56456108]
[1771890007722,0.60949565,1857.1,1856.5,0.56456108]
[1771890007927,1.09687015,1857.0,1856.5,0.56456108]
[1771890008127,0.4873745,1856.9,1856.5,0.56456108]
[1771890008326,0.60949565,1857.0,1856.5,0.56456108]
[1771890008526,1.09686216,1856.9,1856.5,0.56456108]
[1771890008726,0.60949565,1856.9,1856.5,0.56456108]
[1771890009421,0.60949565,1856.7,1856.3,0.57013474]
[1771890010730,0.468,1857.0,1856.5,0.58894127]
[1771890010930,0.48726255,1856.9,1856.5,0.58894127]
[1771890011133,0.51053811,1857.0,1856.5,0.58894127]
[1771890011330,0.48727091,1856.9,1856.5,0.58894127]
[1771890011531,0.04253811,1857.1,1856.5,0.58894127]
[1771890011731,6.71902652,1857.0,1856.5,0.58894127]
[1771890012033,0.48728096,1856.9,1856.5,0.58894127]
[1771890014933,0.52487766,1856.9,1856.5,0.58894127]
[1771890015135,0.48734462,1856.8,1856.5,0.58894127]
[1771890015336,0.0375967,1856.9,1856.5,0.58894127]
[1771890015535,0.48734268,1856.8,1856.5,0.58894127]
[1771890015739,0.0375967,1856.9,1856.5,0.58894127]
[1771890015938,0.48750309,1856.8,1856.5,0.58894127]
[1771890016135,0.0375967,1856.9,1856.5,0.58894127]
[1771890016335,0.0375967,1856.7,1856.3,0.59698564]
[1771890016539,0.03538294,1856.5,1856.0,0.56456108]
[1771890017641,0.26935,1856.9,1855.5,0.26954]
[1771890017642,0.60949565,1856.3,1855.9,0.56456108]
[1771890017833,0.60949565,1856.3,1855.6,0.58016199]
[1771890018341,0.5570475,1856.1,1855.6,0.58016199]
[1771890018739,0.5570475,1856.1,1855.6,0.58672273]
[1771890019439,0.5570475,1856.1,1855.6,0.00656074]
[1771890019836,0.5570475,1856.1,1855.6,0.58672273]
[1771890021937,0.55163672,1855.9,1855.5,0.6042281]
[1771890022536,0.55163672,1855.9,1855.2,0.6042281]
[1771890022843,0.55163672,1855.9,1855.2,41.4042281]
[1771890023043,0.55668394,1855.9,1855.2,0.60850767]
[1771890024844,0.00504722,1855.9,1855.4,0.6042281]
[1771890025446,0.55163672,1856.1,1855.6,0.6042281]
[1771890025837,0.55163672,1856.1,1855.7,0.6042281]
[1771890026543,0.55687204,1856.1,1855.7,0.6042281]
[1771890029544,0.00523532,1856.1,1855.7,0.6042281]
[1771890030845,0.55687204,1856.1,1855.7,0.6042281]
[1771890031249,3.10521578,1856.4,1855.7,0.6042281]
[1771890031444,0.55163672,1856.4,1855.8,0.6042281]
[1771890032350,0.55583436,1856.4,1855.8,0.6042281]
[1771890040950,0.55583436,1856.4,1855.6,0.6042281]
[1771890041145,0.55163672,1856.3,1855.6,0.6042281]
[1771890045251,0.55163672,1856.1,1855.6,0.6042281]
[1771890046344,0.55163672,1856.1,1855.4,0.6042281]
[1771890047749,0.55163672,1855.9,1855.4,0.6042281]
[1771890049450,3.02438688,1856.2,1855.2,0.00427957]
[1771890049652,6.9686527,1856.1,1855.2,0.00427957]
[1771890049850,6.6991927,1856.0,1855.2,0.00427957]
[1771890050154,6.6989189,1855.9,1855.2,0.00427957]
[1771890050361,0.26946,1856.1,1855.2,0.00427957]
[1771890050652,6.69769578,1856.0,1855.2,0.00427957]
[1771890050853,6.69769578,1855.9,1855.2,0.00427957]
[1771890051054,0.48651457,1855.8,1855.2,0.00427957]
[1771890051356,0.26946,1856.1,1855.2,0.00427957]
[1771890051556,6.70832581,1856.0,1855.2,0.00427957]
[1771890051759,6.70832581,1855.9,1855.2,0.00427957]
[1771890051957,0.48644209,1855.8,1855.2,0.00427957]
[1771890052260,0.26946,1856.1,1855.2,0.00427957]
[1771890052451,6.70769605,1856.0,1855.2,0.00427957]
[1771890052652,6.70769605,1855.9,1855.2,0.00427957]
[1771890052854,4.4919822,1856.4,1855.2,2.56066645]
[1771890053054,6.70799516,1856.3,1855.2,2.56066645]
[1771890053254,6.70799516,1856.2,1855.2,0.00427957]
[1771890053453,6.70799516,1856.1,1855.2,0.00427957]
[1771890053654,6.70799516,1856.0,1855.2,0.00427957]
[1771890053952,7.04836908,1856.4,1855.2,0.00427957]
[1771890054159,6.7082232,1856.3,1855.2,0.00427957]
[1771890054361,6.7082232,1856.2,1855.2,0.00427957]
[1771890054561,6.7082232,1856.1,1855.2,0.00427957]
[1771890054760,6.7082232,1856.0,1855.2,0.00427957]
[1771890054961,0.26943,1856.3,1855.2,0.00427957]
[1771890055164,6.70856372,1856.2,1855.2,0.00427957]
[1771890055462,6.70856372,1856.1,1855.2,0.00427957]
[1771890055659,6.70856372,1856.0,1855.2,0.00427957]
[1771890055859,0.26943,1856.3,1855.2,0.00427957]
[1771890056061,6.70865964,1856.2,1855.2,0.00427957]
[1771890056361,6.70865964,1856.1,1855.2,0.00427957]
[1771890056562,6.70865964,1856.0,1855.2,0.00427957]
[1771890056759,0.26943,1856.3,1855.2,0.00427957]
[1771890056960,6.70825472,1856.2,1855.2,0.00427957]
[1771890057263,0.26949,1855.9,1855.2,0.00427957]
[1771890057565,0.48642991,1855.8,1855.2,0.00427957]
[1771890057762,0.26949,1855.9,1855.2,0.00427957]
[1771890057964,0.48630187,1855.8,1855.2,0.00427957]
[1771890058164,0.26949,1855.9,1855.2,0.00427957]
[1771890058365,0.48619388,1855.8,1855.2,0.00427957]
[1771890058564,0.26949,1855.9,1855.2,0.00427957]
[1771890058767,0.48621002,1855.8,1855.2,0.00427957]
[1771890059063,0.26949,1855.9,1855.2,0.00427957]
[1771890059265,0.48611587,1855.8,1855.2,0.00427957]
[1771890059564,0.26949,1855.9,1855.2,0.00427957]
[1771890059766,6.70361142,1855.8,1855.2,0.00427957]
[1771890060063,0.26949,1855.9,1855.2,0.00427957]
[1771890060263,6.70361294,1855.8,1855.2,0.00427957]
[1771890060465,0.26949,1855.9,1855.2,0.00427957]
[1771890060664,6.70430381,1855.8,1855.2,0.00427957]
[1771890060865,0.26949,1855.9,1855.2,0.00427957]
[1771890061065,6.70429882,1855.8,1855.2,0.00427957]
[1771890061366,0.26949,1855.9,1855.2,0.00427957]
[1771890061565,6.70409901,1855.8,1855.2,0.00427957]
[1771890061766,0.26949,1855.9,1855.2,0.00427957]
[1771890061959,6.70339711,1855.8,1855.2,0.00427957]
[1771890062163,0.26949,1855.9,1855.2,0.00427957]
[1771890062367,6.70358421,1855.8,1855.2,0.00427957]
[1771890062666,0.48614305,1855.7,1855.2,0.00427957]
[1771890062867,0.26949,1855.9,1855.2,0.00427957]
[1771890063063,6.70484793,1855.8,1855.2,0.00427957]
[1771890063264,0.48619443,1855.7,1855.2,0.00427957]
[1771890063463,0.26949,1855.9,1855.2,0.00427957]
[1771890063664,6.70430573,1855.8,1855.2,0.00427957]
[1771890063866,0.48615373,1855.7,1855.2,0.00427957]
[1771890064069,0.26949,1855.9,1855.2,0.00427957]
[1771890064264,6.70431146,1855.8,1855.2,0.00427957]
[1771890064465,0.26949,1855.9,1855.2,0.00427957]
[1771890064768,0.48612884,1855.8,1855.2,0.00427957]
[1771890064964,0.26949,1855.9,1855.2,0.00427957]
[1771890065161,4.48778456,1856.2,1855.2,0.00427957]
[1771890065468,0.48615454,1856.1,1855.2,0.00427957]
[1771890065670,6.70414843,1856.0,1855.2,0.00427957]
[1771890065870,0.48615454,1855.9,1855.2,0.00427957]
[1771890066069,4.48778456,1856.2,1855.2,0.00427957]
[1771890066270,0.4861368,1856.1,1855.2,0.00427957]
[1771890066563,6.70395611,1856.0,1855.2,0.00427957]
[1771890066772,0.4861368,1855.9,1855.2,0.00427957]
[1771890066965,0.468,1856.1,1855.2,0.00427957]
[1771890067170,6.70577218,1856.0,1855.2,0.00427957]
[1771890067369,0.48623938,1855.9,1855.2,0.00427957]
[1771890067568,0.468,1856.1,1855.2,0.00427957]
[1771890067771,6.70647037,1856.0,1855.2,0.00427957]
[1771890068073,6.70620418,1855.9,1855.2,0.00427957]
[1771890068364,0.48630467,1855.8,1855.2,0.00427957]
[1771890068564,4.95578456,1856.1,1855.2,2.56066645]
[1771890068765,0.48632624,1856.0,1855.2,2.56066645]
[1771890069069,0.468,1856.1,1855.2,2.56066645]
[1771890069269,0.48636515,1856.0,1855.2,2.56066645]
[1771890069471,0.468,1856.1,1855.2,2.56066645]
[1771890069672,0.48639046,1856.0,1855.2,0.00427957]
[1771890069971,0.468,1856.1,1855.2,0.00427957]
[1771890070164,0.48639068,1856.0,1855.2,0.00427957]
[1771890070366,0.468,1856.1,1855.2,0.00427957]
[1771890070568,0.48645457,1856.0,1855.2,0.00427957]
[1771890070764,0.468,1856.1,1855.2,0.00427957]
[1771890070964,0.48646109,1856.0,1855.2,0.00427957]
[1771890071173,0.468,1856.1,1855.2,2.56066645]
[1771890071575,0.468,1856.1,1855.2,0.00427957]
[1771890072273,0.48651845,1856.0,1855.2,0.00427957]
[1771890072472,0.468,1856.1,1855.2,0.00427957]
[1771890072672,0.48653273,1856.0,1855.2,0.00427957]
[1771890072874,3.02438688,1856.3,1855.2,0.00427957]
[1771890073073,6.70960604,1856.2,1855.2,0.00427957]
[1771890073373,6.70960604,1856.1,1855.2,0.00427957]
[1771890073676,0.48653242,1856.0,1855.2,0.00427957]
[1771890073876,3.02438688,1856.3,1855.2,0.00427957]
[1771890074179,6.71045311,1856.2,1855.2,0.00427957]
[1771890074373,6.71045311,1856.1,1855.2,0.00427957]
[1771890074570,0.48659364,1856.0,1855.2,0.00427957]
[1771890074771,3.02438688,1856.3,1855.2,0.00427957]
[1771890075074,6.71141096,1856.2,1855.2,0.00427957]
[1771890075273,6.71141096,1856.1,1855.2,0.00427957]
[1771890075474,0.48666294,1856.0,1855.2,0.00427957]
[1771890075671,3.02438688,1856.3,1855.2,0.00427957]
[1771890075874,6.71243861,1856.2,1855.2,0.00427957]
[1771890076075,6.71243861,1856.1,1855.2,0.00427957]
[1771890076379,0.48673718,1856.0,1855.2,0.00427957]
[1771890076670,3.02438688,1856.3,1855.2,0.00427957]
[1771890076875,6.71357837,1856.2,1855.2,0.00427957]
[1771890077075,6.71357837,1856.1,1855.2,0.00427957]
[1771890077377,0.48681768,1856.0,1855.2,0.00427957]
[1771890077576,3.02438688,1856.3,1855.2,0.00427957]
[1771890077777,6.68907485,1856.2,1855.2,0.00427957]
[1771890077976,6.68907485,1856.1,1855.2,0.00427957]
[1771890078180,0.4868751,1856.0,1855.2,0.00427957]
[1771890078377,3.02438688,1856.3,1855.2,0.00427957]
[1771890078573,6.68906039,1856.2,1855.2,0.00427957]
[1771890078774,6.68906039,1856.1,1855.2,0.00427957]
[1771890078970,6.68906039,1856.0,1855.2,0.00427957]
[1771890079280,7.51217144,1856.3,1855.2,0.00427957]
[1771890079579,6.68877023,1856.2,1855.2,0.00427957]
[1771890079779,6.68877023,1856.1,1855.2,0.00427957]
[1771890079980,6.68877023,1856.0,1855.2,0.00427957]
[1771890080184,0.48685294,1855.9,1855.2,0.00427957]
[1771890080377,2.82584688,1856.1,1855.2,0.00427957]
[1771890080578,6.68652244,1856.0,1855.2,0.00427957]
[1771890080780,6.68652244,1855.9,1855.2,0.00427957]
[1771890080981,0.48669192,1855.8,1855.2,0.00427957]
[1771890081278,2.82584688,1856.1,1855.2,0.00427957]
[1771890081479,6.68626704,1856.0,1855.2,0.00427957]
[1771890081682,6.68626704,1855.9,1855.2,0.00427957]
[1771890081981,0.48667335,1855.8,1855.2,0.00427957]
[1771890082181,2.82584688,1856.1,1855.2,0.00427957]
[1771890082385,6.6839947,1856.0,1855.2,0.00427957]
[1771890082586,6.6839947,1855.9,1855.2,0.00427957]
[1771890082786,6.6839947,1855.8,1855.2,0.00427957]
[1771890082985,0.48650803,1855.7,1855.2,0.00427957]
[1771890083185,7.31363144,1856.1,1855.2,0.00427957]
[1771890083385,6.68324184,1856.0,1855.2,0.00427957]
[1771890083686,6.68324184,1855.9,1855.2,0.00427957]
[1771890083887,0.48645318,1855.8,1855.2,0.00427957]
[1771890084077,2.82584688,1856.1,1855.2,0.00427957]
[1771890084281,6.68359547,1856.0,1855.2,0.00427957]
[1771890084478,6.68359547,1855.9,1855.2,0.00427957]
[1771890084677,0.48646692,1855.8,1855.2,0.00427957]
[1771890084887,0.468,1856.0,1855.2,0.00427957]
[1771890085088,6.6835057,1855.9,1855.2,0.00427957]
[1771890085286,6.68318296,1855.8,1855.2,0.00427957]
[1771890085492,0.48647159,1855.7,1855.2,0.00427957]
[1771890085687,0.468,1856.0,1855.2,0.00427957]
[1771890085887,6.68309386,1855.9,1855.2,0.00427957]
[1771890086087,6.68309386,1855.8,1855.2,0.00427957]
[1771890086288,0.48644269,1855.7,1855.2,0.00427957]
[1771890086488,0.468,1856.0,1855.2,0.00427957]
[1771890086688,6.68273899,1855.9,1855.2,0.00427957]
[1771890086888,6.68273899,1855.8,1855.2,0.00427957]
[1771890087194,0.48641494,1855.7,1855.2,0.00427957]
[1771890087489,0.26949,1855.9,1854.7,49.18981117]
[1771890087794,2.55638688,1855.7,1854.5,8.38981117]
[1771890087988,6.68204353,1855.6,1854.5,8.38981117]
[1771890088188,0.48634711,1855.5,1854.5,56.33473832]
[1771890088391,2.55638688,1855.7,1854.5,56.33473832]
[1771890088591,6.67999658,1855.6,1854.5,56.33473832]
[1771890088793,0.48621189,1855.5,1854.5,56.34154353]
[1771890088991,2.55638688,1855.7,1854.5,56.34154353]
[1771890089190,6.67893855,1855.6,1854.5,56.34154353]
[1771890089389,0.48613483,1855.5,1854.5,56.34154353]
[1771890089589,2.82590688,1855.7,1854.5,56.34154353]
[1771890089792,6.67759297,1855.6,1854.5,56.34154353]
[1771890089987,0.48603758,1855.5,1854.5,56.34154353]
[1771890090189,2.82590688,1855.7,1854.5,56.34154353]
[1771890090489,6.67655256,1855.6,1854.5,47.95173236]
[1771890090786,0.48596261,1855.5,1854.5,47.95173236]
[1771890090991,2.82590688,1855.7,1854.5,47.95173236]
[1771890091293,6.67666501,1855.6,1854.5,47.95173236]
[1771890091590,0.48597238,1855.5,1854.5,47.95173236]
[1771890091893,2.82590688,1855.7,1854.5,47.95173236]
[1771890092083,6.67407099,1855.6,1854.5,47.95173236]
[1771890092288,0.48578411,1855.5,1854.5,47.95173236]
[1771890092489,2.82590688,1855.7,1854.5,47.95173236]
[1771890092788,0.26954,1855.5,1854.5,47.95173236]
[1771890093190,0.73754,1855.5,1854.5,47.95173236]
[1771890095594,0.73754,1855.5,1854.5,40.80680521]
[1771890097702,0.73754,1855.5,1854.5,0.00680521]
[1771890099099,3.29392688,1855.5,1854.5,0.00680521]
[1771890102110,0.26959,1855.2,1854.5,0.00680521]
[1771890105005,0.73759,1855.2,1854.5,0.00680521]
[1771890109303,3.29644447,1855.2,1854.5,0.00680521]
[1771890115815,0.468,1855.2,1854.7,2.55885447]
[1771890116115,7.03664864,1855.9,1854.9,2.55885447]
[1771890116318,6.75244172,1855.8,1854.9,2.55885447]
[1771890116509,6.75244172,1855.7,1854.9,2.55885447]
[1771890116709,6.75244172,1855.6,1854.9,2.55885447]
[1771890116912,7.03664864,1855.9,1854.9,2.55885447]
[1771890117112,6.75414632,1855.8,1854.9,2.55885447]
[1771890117313,6.75414632,1855.7,1854.9,2.55885447]
[1771890117612,6.75414632,1855.6,1854.9,2.55885447]
[1771890117814,7.03664864,1855.9,1854.9,2.55885447]
[1771890118115,6.75624537,1855.8,1854.9,2.55885447]
[1771890118413,6.75624537,1855.7,1854.9,2.55885447]
[1771890118714,6.75656426,1855.6,1854.9,2.55885447]
[1771890118916,7.04895093,1855.9,1854.9,2.55885447]
[1771890119214,6.75659012,1855.8,1854.9,2.55885447]
[1771890119414,6.75659012,1855.7,1854.9,2.55885447]
[1771890119615,6.75659012,1855.6,1854.9,2.55885447]
[1771890119915,7.04895093,1855.9,1854.9,2.55885447]
[1771890120215,6.7566337,1855.8,1854.9,2.55885447]
[1771890120414,6.7566337,1855.7,1854.9,2.55885447]
[1771890120614,6.7566337,1855.6,1854.9,2.55885447]
[1771890120818,7.04895093,1855.9,1854.9,2.55885447]
[1771890121010,6.75696491,1855.8,1854.9,2.55885447]
[1771890121214,6.75696491,1855.7,1855.1,2.55885447]
[1771890121412,0.26948,1856.0,1855.1,2.55885447]
[1771890121612,9.31527587,1855.9,1855.1,2.55885447]
[1771890121815,6.7564214,1855.8,1855.1,2.55885447]
[1771890122014,0.48626589,1855.7,1855.1,2.55885447]
[1771890122213,2.55885447,1855.9,1855.1,2.55885447]
[1771890122414,6.75521859,1855.8,1855.1,2.55885447]
[1771890122608,0.48617256,1855.7,1855.1,2.55885447]
[1771890122916,2.55885447,1855.9,1855.1,2.55885447]
[1771890123118,6.75621109,1855.8,1855.1,2.55885447]
[1771890123317,0.26948,1856.0,1855.1,2.55885447]
[1771890123619,6.75518293,1855.9,1855.1,2.55885447]
[1771890123818,6.75518293,1855.8,1855.1,2.55885447]
[1771890124119,2.55885447,1855.9,1855.1,2.55885447]
[1771890124314,0.48605077,1855.8,1855.1,2.55885447]
[1771890124618,2.55885447,1855.9,1855.1,2.55885447]
[1771890124820,0.48603059,1855.8,1855.1,2.55885447]
[1771890125119,2.55885447,1855.9,1855.1,2.55885447]
[1771890125317,0.4859463,1855.8,1855.1,2.55885447]
[1771890125516,2.55885447,1855.9,1855.1,2.55885447]
[1771890125718,0.48591427,1855.8,1855.1,2.55885447]
[1771890126017,2.55885447,1855.9,1855.1,2.55885447]
[1771890126217,0.485962,1855.8,1855.1,2.55885447]
[1771890126418,2.55885447,1855.9,1855.1,2.55885447]
[1771890126618,0.48585232,1855.8,1855.1,2.55885447]
[1771890126818,2.55885447,1855.9,1855.1,2.55885447]
[1771890127011,0.48584924,1855.8,1855.1,2.55885447]
[1771890127210,0.26948,1856.0,1855.1,2.55885447]
[1771890127411,6.74950319,1855.9,1855.1,2.55885447]
[1771890127617,0.26948,1856.0,1855.1,2.55885447]
[1771890127813,6.74905266,1855.9,1855.1,2.55885447]
[1771890128114,0.26948,1856.0,1855.1,2.55885447]
[1771890128314,6.26268524,1855.9,1855.1,2.55885447]
[1771890128517,0.26948,1856.0,1855.1,2.55885447]
[1771890130925,0.26948,1856.0,1855.2,7.14860684]
[1771890132126,0.26948,1856.0,1855.3,40.8]
[1771890133027,2.55885447,1856.1,1855.3,40.8]
[1771890134129,2.83247211,1856.4,1855.4,9.43595052]
[1771890134330,2.55885447,1855.7,1854.9,2.55885447]
[1771890142632,2.55885447,1855.9,1854.9,2.55885447]
[1771890143224,0.48608201,1855.8,1854.9,2.55885447]
[1771890143427,2.55885447,1855.9,1854.9,2.55885447]
[1771890143626,2.55885447,1855.7,1854.9,2.55885447]
[1771890150540,2.55885447,1855.5,1854.8,40.8]
[1771890150844,2.55885447,1855.7,1854.8,40.8]
[1771890151046,2.55885447,1855.5,1854.8,40.8]
[1771890152946,2.55885447,1855.5,1854.5,0.00680521]
[1771890153146,2.55885447,1855.3,1854.5,0.00680521]
[1771890153348,2.55885447,1855.3,1854.6,40.8]
[1771890154944,2.55885447,1855.3,1854.5,0.00680521]
[1771890155150,2.55885447,1855.1,1854.5,0.00680521]
[1771890155449,2.56363239,1855.1,1854.5,0.00680521]
[1771890155844,2.55885447,1854.7,1853.9,2.82862447]
[1771890156045,2.55885447,1854.7,1853.9,0.26977]
[1771890156248,2.55885447,1854.7,1854.0,40.8]
[1771890156948,2.55885447,1854.7,1854.0,40.80523184]
[1771890157252,2.55885447,1854.7,1854.0,0.00523184]
[1771890157445,2.55885447,1854.5,1854.0,0.00523184]
[1771890157847,2.55885447,1854.7,1854.0,0.00523184]
[1771890162352,2.55885447,1854.5,1854.0,0.00523184]
[1771890162558,2.55885447,1854.3,1853.4,2.82869447]
[1771890162951,2.55885447,1854.3,1853.5,40.8]
[1771890163650,0.26963,1855.0,1853.5,40.80580993]
[1771890163956,2.55885447,1854.5,1853.6,2.55885447]
[1771890164358,2.55885447,1854.7,1853.8,2.55885447]
[1771890165054,2.55885447,1854.5,1853.6,2.82867447]
[1771890165947,2.55885447,1855.0,1854.1,2.55885447]
[1771890166155,2.55885447,1854.9,1854.1,2.55885447]
[1771890166352,2.55885447,1854.9,1853.9,2.55885447]
[1771890167254,2.55885447,1854.9,1853.9,2.82862447]
[1771890168457,2.55885447,1854.9,1854.0,40.8]
[1771890169159,2.55885447,1854.7,1854.0,40.8]
[1771890169361,2.56009461,1855.0,1854.0,40.8]
[1771890171256,2.56009461,1854.8,1854.0,40.8]
[1771890171462,2.56009461,1854.8,1853.5,0.27563993]
[1771890171760,2.56009461,1854.8,1853.6,7.07135908]
[1771890171958,2.56009461,1854.8,1853.6,47.87135908]
[1771890172262,2.56009461,1854.8,1853.5,0.27563993]
[1771890172263,2.82979461,1854.5,1853.5,0.00580993]
[1771890173658,2.56009461,1854.3,1853.5,0.00580993]
[1771890174056,2.82979461,1854.5,1853.1,0.26989]
[1771890174057,2.56009461,1854.1,1853.1,0.26989]
[1771890174256,2.56009461,1854.1,1852.8,2.56009461]
[1771890174458,2.82979461,1854.5,1853.1,0.26989]
[1771890175153,2.82979461,1854.5,1853.1,0.2742837]
[1771890177967,2.82979461,1854.5,1853.2,2.56009461]
[1771890178466,0.2697,1854.5,1853.3,7.04955067]
[1771890180066,0.2697,1854.5,1853.4,40.8]
[1771890184175,0.48448105,1854.4,1853.4,40.8]
[1771890184473,0.2697,1854.5,1853.4,40.8]
[1771890184669,0.484481,1854.4,1853.4,40.8]
[1771890184873,0.2697,1854.5,1853.4,40.8]
[1771890185068,0.48447982,1854.4,1853.4,40.8]
[1771890185368,0.2697,1854.5,1853.4,40.8]
[1771890185572,0.48474045,1854.4,1853.4,40.8]
[1771890185773,0.2697,1854.5,1853.4,40.8]
[1771890185967,0.48473929,1854.4,1853.4,40.8]
[1771890186173,0.2697,1854.5,1853.4,40.8]
[1771890186372,0.4847936,1854.4,1853.2,2.56009461]
[1771890186571,2.82979461,1854.5,1853.1,0.2742837]
[1771890186772,6.69960894,1854.4,1853.3,6.91194499]
[1771890186973,2.82979461,1854.5,1853.3,40.8]
[1771890187271,6.69953845,1854.4,1853.4,7.10447263]
[1771890187466,0.48479613,1854.3,1853.4,7.10447263]
[1771890187665,2.82979461,1854.5,1853.4,7.10447263]
[1771890187873,6.70016605,1854.4,1853.4,7.10447263]
[1771890188172,0.48484397,1854.3,1853.4,7.10447263]
[1771890188367,2.82979461,1854.5,1853.4,7.10447263]
[1771890188665,6.7005417,1854.4,1853.4,7.10447263]
[1771890188867,0.48487241,1854.3,1853.4,7.10447263]
[1771890189066,2.82979461,1854.5,1853.4,7.10447263]
[1771890189272,2.56009461,1854.3,1853.4,7.10447263]
[1771890189577,0.48488699,1854.2,1853.1,0.2742837]
[1771890189977,0.26972,1854.3,1853.2,7.08064945]
[1771890190177,0.48489058,1854.2,1853.2,7.08064945]
[1771890190377,0.26972,1854.3,1853.2,7.08064945]
[1771890190576,0.48491407,1854.2,1853.2,7.08064945]
[1771890190777,0.26972,1854.3,1853.2,7.08064945]
[1771890190978,0.48491458,1854.2,1853.2,7.08064945]
[1771890191276,0.26972,1854.3,1853.2,7.08064945]
[1771890191478,0.4849528,1854.2,1853.2,7.08064945]
[1771890191672,0.26972,1854.3,1853.2,7.08064945]
[1771890191868,0.48495163,1854.2,1853.2,7.08064945]
[1771890192069,0.26972,1854.3,1853.2,7.08064945]
[1771890192273,0.48495823,1854.2,1853.2,7.08064945]
[1771890192468,0.26972,1854.3,1853.2,7.08064945]
[1771890192678,0.48497872,1854.2,1853.2,7.08064945]
[1771890192869,0.26972,1854.3,1853.2,7.08064945]
[1771890193073,0.48497884,1854.2,1853.2,7.08064945]
[1771890193372,0.26972,1854.3,1853.2,7.08064945]
[1771890193574,0.48496143,1854.2,1853.2,7.08064945]
[1771890193774,0.26972,1854.3,1853.2,7.08064945]
[1771890193971,0.48496137,1854.2,1853.2,7.08064945]
[1771890194175,0.26972,1854.3,1853.2,7.08064945]
[1771890194372,0.48494676,1854.2,1853.2,7.08064945]
[1771890194573,0.26972,1854.3,1853.2,7.08064945]
[1771890194772,0.48494517,1854.2,1853.2,7.08064945]
[1771890194981,0.26972,1854.3,1853.2,7.08064945]
[1771890195172,0.48494608,1854.2,1853.2,7.08064945]
[1771890195378,0.26972,1854.3,1853.2,7.08064945]
[1771890195680,0.48494698,1854.2,1853.2,7.08064945]
[1771890195880,0.26972,1854.3,1853.2,7.08064945]
[1771890196081,0.4849146,1854.2,1853.2,7.08064945]
[1771890196283,0.26972,1854.3,1853.2,7.08064945]
[1771890196481,0.48497184,1854.2,1853.2,7.08064945]
[1771890196679,0.26972,1854.3,1853.2,7.08064945]
[1771890196979,0.4849706,1854.2,1853.2,7.08064945]
[1771890197178,0.26972,1854.3,1853.2,7.08064945]
[1771890197380,6.71951414,1854.2,1853.2,7.08064945]
[1771890197679,0.26972,1854.3,1853.2,7.08064945]
[1771890197980,6.71951501,1854.2,1853.2,7.08064945]
[1771890198179,0.26972,1854.3,1853.2,7.08064945]
[1771890198381,6.72164022,1854.2,1853.2,7.08064945]
[1771890198574,0.26972,1854.3,1853.2,7.08064945]
[1771890198779,6.72165565,1854.2,1853.2,7.08064945]
[1771890198979,0.26972,1854.3,1853.2,7.08064945]
[1771890199180,6.72126585,1854.2,1853.2,7.08064945]
[1771890199478,0.48522816,1854.1,1853.2,7.08064945]
[1771890199678,0.26972,1854.3,1853.2,7.08064945]
[1771890199880,6.72393911,1854.2,1853.2,7.08064945]
[1771890200079,0.48542453,1854.1,1853.2,7.08064945]
[1771890200385,0.26972,1854.3,1853.2,7.08064945]
[1771890200584,6.72743835,1854.2,1853.2,7.08064945]
[1771890200785,0.48568237,1854.1,1853.2,7.08064945]
[1771890200984,0.26972,1854.3,1853.2,7.08064945]
[1771890201185,6.67332876,1854.2,1853.2,7.08064945]
[1771890201384,0.26972,1854.3,1853.2,7.08064945]
[1771890201385,0.48567394,1854.1,1853.2,7.08064945]
[1771890201586,0.26972,1854.3,1853.2,7.08064945]
[1771890201787,6.67306896,1854.2,1853.2,7.08064945]
[1771890202086,0.48601977,1854.1,1853.2,7.08064945]
[1771890202287,0.26972,1854.3,1853.2,7.08064945]
[1771890202487,6.67365268,1854.2,1853.3,0.26986]
[1771890202686,0.26972,1854.3,1853.3,0.26986]
[1771890202890,0.48603517,1854.2,1853.3,0.26986]
[1771890203090,0.26972,1854.3,1853.3,0.26986]
[1771890203292,0.48604387,1854.2,1853.3,0.26986]
[1771890203490,0.26972,1854.3,1853.3,0.26986]
[1771890203692,0.48605174,1854.2,1853.3,0.26986]
[1771890203887,0.26972,1854.3,1853.3,0.26986]
[1771890204084,0.48605146,1854.2,1853.3,0.26986]
[1771890204289,0.48605146,1854.1,1853.3,0.26986]
[1771890204488,0.26972,1854.3,1853.3,0.26986]
[1771890204689,0.48620149,1854.2,1853.3,0.26986]
[1771890204885,0.48620149,1854.1,1853.3,0.26986]
[1771890205090,0.26972,1854.3,1853.3,0.26986]
[1771890205292,0.48620264,1854.2,1853.3,0.26986]
[1771890205493,0.48620264,1854.1,1853.3,0.26986]
[1771890205693,0.26972,1854.3,1853.3,0.26986]
[1771890205894,0.48620257,1854.2,1853.3,0.26986]
[1771890206095,0.48620257,1854.1,1853.3,0.26986]
[1771890206295,0.26972,1854.3,1853.3,0.26986]
[1771890206496,0.4862125,1854.2,1853.3,0.26986]
[1771890206695,0.4862125,1854.1,1853.3,0.26986]
[1771890206997,0.26972,1854.3,1853.3,0.26986]
[1771890207193,0.48621267,1854.2,1853.3,0.26986]
[1771890207394,0.48621267,1854.1,1853.3,0.26986]